bitfinex/quotes_ETHUSD_20260110
["timestamp","ask_amount","ask_price","bid_price","bid_amount"]
[1768073257647,0.06994067,3091.5,3091.3,0.002]
[1768073277842,0.06994067,3091.5,3091.3,0.97183419]
[1768073278003,0.001,3091.7,3091.4,0.96983419]
[1768073279235,0.001,3091.7,3091.6,0.002]
[1768073279432,0.3041274,3091.7,3091.4,0.96983419]
[1768073279637,0.001,3091.7,3091.4,0.96983419]
[1768073283942,0.001,3091.7,3091.4,1.16420103]
[1768073295549,0.001,3091.7,3091.4,0.96983419]
[1768073309947,3.23399007,3092.2,3091.7,0.91067863]
[1768073310141,0.30309947,3092.1,3091.7,0.91067863]
[1768073310351,0.30309947,3092.0,3091.7,0.91067863]
[1768073310551,4.20462041,3092.2,3091.7,0.91067863]
[1768073310756,0.3030936,3092.1,3091.7,0.91067863]
[1768073311054,0.3030936,3092.0,3091.7,0.91067863]
[1768073311221,0.97063034,3092.2,3091.7,0.91067863]
[1768073311422,0.30310872,3092.1,3091.7,0.91067863]
[1768073311725,0.97063034,3092.2,3091.7,0.91067863]
[1768073311926,0.30308121,3092.1,3091.7,0.91067863]
[1768073312254,0.97063034,3092.2,3091.7,0.91067863]
[1768073312455,0.30308121,3092.1,3091.7,0.91067863]
[1768073312755,0.97063034,3092.2,3091.7,0.91067863]
[1768073312956,0.30306152,3092.1,3091.7,0.91067863]
[1768073313154,0.97063034,3092.2,3091.7,0.91067863]
[1768073313354,0.30306177,3092.1,3091.7,0.91067863]
[1768073313655,0.97063034,3092.2,3091.7,0.91067863]
[1768073313861,0.30304682,3092.1,3091.7,0.91067863]
[1768073314157,0.001,3091.9,3091.7,0.91067863]
[1768073314328,0.001,3091.9,3091.7,1.09880953]
[1768073327272,0.001,3091.9,3091.7,0.91067863]
[1768073334471,0.001,3091.9,3091.4,0.95160691]
[1768073334674,0.001,3091.9,3091.4,1.92223725]
[1768073335073,0.001,3091.9,3091.4,0.97063034]
[1768073336892,0.001,3091.9,3091.7,0.002]
[1768073383823,0.3032731,3091.8,3091.7,0.002]
[1768073384020,0.34370262,3091.8,3091.7,0.002]
[1768073384209,0.04042952,3091.8,3091.7,0.002]
[1768073384517,3.5780389,3091.8,3091.7,0.002]
[1768073384923,0.34367704,3091.8,3091.7,0.002]
[1768073385296,0.04042952,3091.8,3091.7,0.002]
[1768073385621,1.24539383,3091.8,3091.4,1.98e-06]
[1768073385807,1.07472248,3091.7,3091.4,1.98e-06]
[1768073386002,0.7715074,3091.7,3091.4,1.98e-06]
[1768073386411,0.256,3091.6,3091.4,1.98e-06]
[1768073404751,3.2344106,3091.8,3091.4,1.98e-06]
[1768073413275,0.30314768,3091.7,3091.4,1.98e-06]
[1768073413442,3.2344106,3091.8,3091.4,1.98e-06]
[1768073413643,0.3031477,3091.7,3091.4,1.98e-06]
[1768073413856,3.2344106,3091.8,3091.4,1.98e-06]
[1768073414070,0.30314794,3091.7,3091.4,1.98e-06]
[1768073414257,0.76813393,3091.8,3091.4,1.98e-06]
[1768073414455,0.30318067,3091.7,3091.4,1.98e-06]
[1768073414686,3.23527861,3091.9,3091.4,1.98e-06]
[1768073414881,0.30317763,3091.8,3091.4,1.98e-06]
[1768073415076,0.30317763,3091.7,3091.4,1.98e-06]
[1768073415270,3.23527861,3091.9,3091.4,1.98e-06]
[1768073415470,0.30324296,3091.8,3091.4,1.98e-06]
[1768073415769,0.30324296,3091.7,3091.4,1.98e-06]
[1768073415969,4.10347276,3091.9,3091.4,1.98e-06]
[1768073416279,0.30324323,3091.8,3091.4,1.98e-06]
[1768073416582,0.30324323,3091.7,3091.4,1.98e-06]
[1768073416784,4.10347276,3091.9,3091.4,1.98e-06]
[1768073416961,0.73899169,3091.8,3091.4,1.98e-06]
[1768073417162,0.30324441,3091.7,3091.4,1.98e-06]
[1768073417355,0.43574728,3091.8,3091.4,1.98e-06]
[1768073417553,0.3032438,3091.7,3091.4,1.98e-06]
[1768073417755,0.43574728,3091.8,3091.4,1.98e-06]
[1768073418482,0.001,3091.5,3091.4,1.98e-06]
[1768073420087,0.001,3091.5,3091.4,0.90626236]
[1768073421594,0.001,3091.5,3091.4,1.98e-06]
[1768073463011,0.001,3091.9,3091.4,1.98e-06]
[1768073463216,0.30320318,3091.8,3091.4,1.98e-06]
[1768073463417,0.001,3091.9,3091.4,1.98e-06]
[1768073465817,0.95029093,3091.9,3091.4,1.98e-06]
[1768073475776,0.001,3091.6,3091.4,1.98e-06]
[1768073505659,0.001,3091.6,3091.4,0.21546036]
[1768073505859,0.001,3091.9,3091.4,1.18237647]
[1768073506061,0.30330303,3091.8,3091.4,2.15301623]
[1768073506262,0.001,3091.9,3091.4,2.15301623]
[1768073506471,0.30330398,3091.8,3091.4,2.15301623]
[1768073506689,0.001,3091.9,3091.4,2.15301623]
[1768073506889,0.30330397,3091.8,3091.4,2.15301623]
[1768073507188,0.001,3091.9,3091.4,2.15301623]
[1768073507390,0.30330412,3091.8,3091.4,2.15301623]
[1768073507590,0.001,3091.9,3091.4,2.15301623]
[1768073507895,0.3033041,3091.8,3091.4,2.15301623]
[1768073508090,0.001,3091.9,3091.4,2.15301623]
[1768073508398,0.30330412,3091.8,3091.4,2.15301623]
[1768073508596,0.001,3091.9,3091.4,2.15301623]
[1768073508783,0.30330453,3091.8,3091.4,2.15301623]
[1768073508984,0.001,3091.9,3091.4,2.15301623]
[1768073509298,0.30330453,3091.8,3091.4,2.15301623]
[1768073509494,0.001,3091.9,3091.4,2.15301623]
[1768073509678,0.3033006,3091.8,3091.4,2.15301623]
[1768073509871,0.001,3091.9,3091.4,2.15301623]
[1768073510071,0.30330036,3091.8,3091.4,2.15301623]
[1768073510282,0.001,3091.9,3091.5,0.21744218]
[1768073510601,0.30329793,3091.8,3091.5,0.21744218]
[1768073510784,0.001,3091.9,3091.5,0.21744218]
[1768073510966,0.30329789,3091.8,3091.5,0.21744218]
[1768073511166,0.001,3091.9,3091.5,0.21744218]
[1768073511387,0.30329603,3091.8,3091.5,0.21744218]
[1768073511563,0.001,3091.9,3091.5,0.21744218]
[1768073511758,0.30329588,3091.8,3091.5,0.21744218]
[1768073511972,0.001,3091.9,3091.5,0.21744218]
[1768073512199,0.30329587,3091.8,3091.5,0.21744218]
[1768073512400,0.001,3091.9,3091.5,0.21744218]
[1768073512583,0.30329466,3091.8,3091.5,0.21744218]
[1768073512758,0.001,3091.9,3091.5,0.21744218]
[1768073512964,0.30329468,3091.8,3091.5,0.21744218]
[1768073513277,0.001,3091.9,3091.5,0.21744218]
[1768073513477,0.3032936,3091.8,3091.5,0.21744218]
[1768073513687,0.001,3091.9,3091.5,0.21744218]
[1768073513892,0.3032936,3091.8,3091.5,0.21744218]
[1768073514100,0.001,3091.9,3091.5,0.21744218]
[1768073514406,0.30329256,3091.8,3091.5,0.21744218]
[1768073514569,0.001,3091.9,3091.5,0.21744218]
[1768073514769,0.30329258,3091.8,3091.5,0.21744218]
[1768073514974,0.001,3091.9,3091.5,0.21744218]
[1768073515184,0.30329256,3091.8,3091.5,0.21744218]
[1768073515384,0.001,3091.9,3091.5,0.21744218]
[1768073515567,0.30329183,3091.8,3091.5,0.21744218]
[1768073515767,0.001,3091.9,3091.6,0.2155]
[1768073515969,0.001,3091.9,3091.4,1.93755785]
[1768073522301,0.001,3091.6,3091.4,1.93755785]
[1768073528211,0.001,3091.9,3091.4,1.93755785]
[1768073533911,0.001,3091.6,3091.4,1.93755785]
[1768073534081,0.001,3091.9,3091.4,1.93755785]
[1768073534281,0.001,3091.9,3091.4,2.15905419]
[1768073536011,0.001,3091.9,3091.5,0.01940554]
[1768073536309,0.001,3091.9,3091.5,0.99002018]
[1768073537506,0.001,3091.9,3091.5,0.97061464]
[1768073537713,0.001,3091.9,3091.5,0.97213897]
[1768073538012,0.001,3091.9,3091.5,1.94270336]
[1768073538212,0.001,3091.9,3091.6,0.21642017]
[1768073538711,0.001,3091.9,3091.6,0.97056439]
[1768073539587,4.18089529,3092.4,3091.6,1.94270336]
[1768073539788,0.30324246,3092.3,3091.6,1.94270336]
[1768073540109,0.30324246,3092.2,3091.6,0.97213897]
[1768073540289,4.18089529,3092.4,3091.7,0.97056125]
[1768073540497,0.30318359,3092.3,3091.7,1.16483127]
[1768073540696,4.18089529,3092.4,3091.7,1.16483127]
[1768073540904,0.30318678,3092.3,3091.7,1.16483127]
[1768073541100,4.18089529,3092.4,3091.7,1.16483127]
[1768073541306,0.30318853,3092.3,3091.7,1.16483127]
[1768073541502,4.18089529,3092.4,3091.7,1.16483127]
[1768073541708,0.30312479,3092.3,3091.7,1.16483127]
[1768073541919,4.18089529,3092.4,3091.7,1.16483127]
[1768073542215,0.30312399,3092.3,3091.7,1.16483127]
[1768073542396,4.18089529,3092.4,3091.7,1.16483127]
[1768073542596,0.3030812,3092.3,3091.7,1.16483127]
[1768073542798,4.18089529,3092.4,3091.7,1.16483127]
[1768073543003,0.3030812,3092.3,3091.7,1.16483127]
[1768073543205,0.94715238,3092.4,3091.7,1.16483127]
[1768073543523,0.30304877,3092.3,3091.7,1.16483127]
[1768073543722,0.94715238,3092.4,3091.7,1.16483127]
[1768073543895,0.30304901,3092.3,3091.7,1.16483127]
[1768073544094,0.94715238,3092.4,3091.7,1.16483127]
[1768073544296,0.30305012,3092.3,3091.7,1.16483127]
[1768073544497,0.94715238,3092.4,3091.7,1.16483127]
[1768073544706,0.30302332,3092.3,3091.7,1.16483127]
[1768073544925,0.94715238,3092.4,3091.8,0.21369702]
[1768073545125,0.3030234,3092.3,3091.8,0.21369702]
[1768073545325,0.94715238,3092.4,3091.8,0.21369702]
[1768073545525,0.001,3092.0,3091.8,0.21369702]
[1768073545826,0.94715238,3092.4,3091.8,0.21369702]
[1768073546016,0.30300435,3092.3,3091.7,0.97056125]
[1768073546196,0.94715238,3092.4,3091.7,0.97056125]
[1768073546397,0.30298508,3092.3,3091.7,0.97056125]
[1768073546722,0.94715238,3092.4,3091.7,0.97056125]
[1768073546923,0.30298508,3092.3,3091.7,0.97056125]
[1768073547232,4.18088983,3092.4,3091.7,1.62552758]
[1768073547396,0.30296955,3092.3,3091.7,1.62552758]
[1768073547694,4.18088983,3092.4,3091.7,1.62552758]
[1768073547893,0.30296954,3092.3,3091.7,1.62552758]
[1768073548093,4.18088983,3092.4,3091.7,1.62552758]
[1768073548425,0.30296579,3092.3,3091.8,0.59014628]
[1768073548722,4.18088983,3092.4,3091.8,0.59014628]
[1768073548922,0.30295624,3092.3,3091.8,0.59014628]
[1768073549124,4.18088983,3092.4,3091.8,0.59014628]
[1768073555810,0.30294419,3092.3,3091.8,0.59014628]
[1768073556010,4.18088983,3092.4,3091.8,0.59014628]
[1768073556214,0.30294445,3092.3,3091.7,1.92329468]
[1768073556422,4.18088983,3092.4,3091.7,1.92329468]
[1768073556726,0.30295104,3092.3,3091.7,1.92329468]
[1768073557028,4.18088983,3092.4,3091.7,1.92329468]
[1768073557227,0.3029511,3092.3,3091.7,1.92329468]
[1768073557430,4.18088983,3092.4,3091.8,0.65496633]
[1768073557731,0.001,3092.0,3091.7,1.92329468]
[1768073561511,0.001,3092.0,3091.7,0.97056125]
[1768073569545,0.95171589,3092.0,3091.7,0.97056125]
[1768073569745,0.95171589,3092.0,3091.4,1.98e-06]
[1768073569915,0.95171589,3092.0,3091.6,0.002]
[1768073570817,0.95071589,3091.9,3091.6,0.002]
[1768073572840,4.18497949,3091.9,3091.6,0.002]
[1768073580735,0.9226139,3091.8,3091.6,0.002]
[1768073580940,0.9226139,3091.8,3091.1,0.02140554]
[1768073580941,0.9226139,3091.6,3090.9,9.88e-06]
[1768073581661,0.97080309,3091.5,3090.9,9.88e-06]
[1768073582050,4.2054894,3091.5,3090.9,9.88e-06]
[1768073582441,3.23468631,3091.5,3090.9,9.88e-06]
[1768073582644,0.97080309,3091.4,3090.9,9.88e-06]
[1768073582843,1.89341699,3091.4,3090.9,9.88e-06]
[1768073583579,0.97748057,3091.3,3090.9,9.88e-06]
[1768073583877,1.10694025,3091.3,3090.6,0.002]
[1768073584084,15.05019931,3091.5,3090.6,0.002]
[1768073584085,4.21257487,3091.1,3090.6,0.002]
[1768073584240,0.77502758,3091.0,3090.6,0.002]
[1768073584642,1.75250815,3091.0,3090.6,0.002]
[1768073584869,0.12946219,3090.9,3090.6,0.002]
[1768073586789,1.75250815,3091.0,3090.6,0.002]
[1768073591891,4.98770871,3091.0,3090.6,0.002]
[1768073593282,0.51171709,3090.9,3090.6,0.002]
[1768073597394,4.98770871,3091.0,3090.6,0.002]
[1768073598295,0.12946219,3091.1,3090.6,0.93628156]
[1768073598603,0.254,3091.2,3090.6,0.93628156]
[1768073599294,3.48906882,3091.2,3090.6,0.93628156]
[1768073605575,0.001,3090.9,3090.6,0.93628156]
[1768073612317,0.001,3090.9,3090.6,0.002]
[1768073621822,0.001,3090.9,3090.6,0.93684866]
[1768073640140,0.001,3090.9,3090.6,0.002]
[1768073644941,0.001,3090.9,3090.6,0.93779021]
[1768073672188,0.001,3090.9,3090.6,0.002]
[1768073698912,0.001,3090.9,3090.6,0.99699331]
[1768073703099,7.36516291,3091.4,3090.6,0.99699331]
[1768073703305,0.90460221,3091.2,3090.6,0.002]
[1768073703527,0.30323077,3091.1,3090.6,0.002]
[1768073703715,0.91588092,3090.9,3090.6,0.002]
[1768073712119,0.91588092,3091.1,3090.6,0.002]
[1768073712319,0.3032211,3091.0,3090.6,0.002]
[1768073712519,0.91588092,3091.1,3090.6,0.002]
[1768073712739,0.30322068,3091.0,3090.6,0.002]
[1768073712941,0.91588092,3091.1,3090.6,0.002]
[1768073713120,0.30322055,3091.0,3090.6,0.002]
[1768073713320,0.91588092,3091.1,3090.6,0.002]
[1768073713523,0.3032202,3091.0,3090.6,0.002]
[1768073713725,0.91588092,3091.1,3090.6,0.002]
[1768073713922,0.30322022,3091.0,3090.6,0.002]
[1768073714122,4.15098558,3091.1,3090.6,0.002]
[1768073714421,0.30322037,3091.0,3090.6,0.002]
[1768073714621,4.15098558,3091.1,3090.6,0.002]
[1768073714939,0.30322037,3091.0,3090.6,0.002]
[1768073715142,0.91588092,3091.1,3090.6,0.002]
[1768073715314,0.30322224,3091.0,3090.6,0.002]
[1768073715514,4.15098312,3091.1,3090.6,0.002]
[1768073715730,0.30322182,3091.0,3090.6,0.002]
[1768073715933,4.15098003,3091.1,3090.6,0.002]
[1768073716137,0.30322141,3091.0,3090.6,0.002]
[1768073716343,4.15098003,3091.1,3090.6,0.002]
[1768073716641,0.30322219,3091.0,3090.6,0.002]
[1768073716941,4.15098003,3091.1,3090.6,0.002]
[1768073717142,0.30322237,3091.0,3090.6,0.002]
[1768073717341,4.15098003,3091.1,3090.6,0.002]
[1768073717541,0.303223,3091.0,3090.6,0.002]
[1768073717742,4.15098003,3091.1,3090.6,0.002]
[1768073718042,0.303223,3091.0,3090.6,0.002]
[1768073718341,4.15098003,3091.1,3090.6,0.002]
[1768073718543,0.30322455,3091.0,3090.6,0.002]
[1768073718730,4.15098003,3091.1,3090.6,0.002]
[1768073718929,0.30322453,3091.0,3090.6,0.002]
[1768073719131,3.66752256,3092.7,3090.6,0.002]
[1768073719132,1.04533054,3091.7,3090.8,0.95760665]
[1768073719309,1.21909134,3091.6,3090.8,0.95760665]
[1768073719642,0.30321042,3091.5,3090.8,0.95760665]
[1768073719842,0.30321042,3091.4,3090.8,0.95760665]
[1768073720013,0.91588092,3091.6,3090.8,0.95760665]
[1768073720214,0.30321716,3091.5,3090.8,0.95760665]
[1768073720415,0.30321716,3091.4,3090.8,0.95760665]
[1768073720644,0.91588092,3091.6,3090.8,0.95760665]
[1768073720846,0.30311826,3091.5,3090.8,0.95760665]
[1768073721035,0.30311826,3091.4,3090.8,0.95760665]
[1768073721343,0.30311826,3091.3,3090.9,0.002]
[1768073721530,3.23468546,3091.5,3090.9,0.002]
[1768073721715,0.3030712,3091.4,3090.9,0.002]
[1768073721917,0.3030712,3091.3,3090.9,0.002]
[1768073722243,3.23468546,3091.5,3090.9,0.002]
[1768073722441,0.30303806,3091.4,3090.9,0.002]
[1768073722644,3.23468546,3091.5,3090.9,0.002]
[1768073722946,0.30303829,3091.4,3090.9,0.002]
[1768073723246,3.23468546,3091.5,3090.9,0.002]
[1768073723446,0.30300626,3091.4,3090.9,0.002]
[1768073723646,0.30300423,3091.3,3090.9,0.002]
[1768073723844,0.91588092,3091.4,3090.9,0.002]
[1768073724051,0.30300203,3091.3,3090.9,0.002]
[1768073724345,0.91588092,3091.4,3090.9,0.002]
[1768073724539,0.302996,3091.3,3090.9,0.002]
[1768073724726,0.91588092,3091.4,3090.9,0.002]
[1768073724925,0.30299598,3091.3,3090.9,0.002]
[1768073725130,3.23488499,3091.3,3090.9,0.002]
[1768073726343,4.15069386,3091.4,3090.9,0.002]
[1768073726539,0.30298761,3091.3,3090.9,0.002]
[1768073726851,4.15069386,3091.4,3090.9,0.002]
[1768073727151,0.302988,3091.3,3090.9,0.002]
[1768073727321,4.15069386,3091.4,3090.9,0.002]
[1768073727521,0.30298543,3091.3,3090.9,0.002]
[1768073727721,4.15069386,3091.4,3090.9,0.002]
[1768073727950,0.30298545,3091.3,3090.9,0.002]
[1768073728247,4.15069386,3091.4,3090.9,0.002]
[1768073728454,0.30298422,3091.3,3090.9,0.002]
[1768073728760,4.15069386,3091.4,3090.9,0.002]
[1768073728919,0.3029842,3091.3,3090.9,0.002]
[1768073729124,4.15069386,3091.4,3090.9,0.002]
[1768073729323,0.30298246,3091.3,3090.9,0.002]
[1768073729653,4.15069386,3091.4,3090.9,0.002]
[1768073729837,0.3029822,3091.3,3090.9,0.002]
[1768073730032,4.15069386,3091.4,3090.9,0.002]
[1768073730233,0.30298246,3091.3,3090.9,0.002]
[1768073730433,4.15069386,3091.4,3090.9,0.002]
[1768073730633,0.30298481,3091.3,3090.9,0.002]
[1768073730834,4.15069386,3091.4,3090.9,0.002]
[1768073731033,0.30298505,3091.3,3090.9,0.002]
[1768073731226,4.15069386,3091.4,3090.9,0.002]
[1768073731427,0.3029842,3091.3,3090.9,0.002]
[1768073731629,4.15069386,3091.4,3090.9,0.002]
[1768073731824,0.30298446,3091.3,3090.9,0.002]
[1768073732024,4.15069386,3091.4,3090.9,0.002]
[1768073732251,0.30298472,3091.3,3090.9,0.002]
[1768073732451,4.15069386,3091.4,3090.9,0.002]
[1768073732651,0.30298477,3091.3,3090.9,0.002]
[1768073732852,4.15069386,3091.4,3090.9,0.002]
[1768073733051,0.30298475,3091.3,3090.9,0.002]
[1768073733251,4.15069386,3091.4,3091.2,0.002]
[1768073733456,0.71805527,3091.3,3091.2,0.002]
[1768073734457,1.66404934,3091.3,3091.2,0.002]
[1768073735944,0.71805527,3091.3,3091.2,0.002]
[1768073738428,0.30298588,3091.3,3091.2,0.002]
[1768073749070,0.30320974,3091.3,3091.2,0.002]
[1768073754581,3.53809473,3091.3,3091.2,0.002]
[1768073754748,0.30320974,3091.3,3091.2,0.002]
[1768073754940,3.53809473,3091.3,3091.2,0.002]
[1768073755145,7.54485684,3091.3,3090.9,0.002]
[1768073755378,0.30320974,3091.2,3090.9,0.002]
[1768073755665,0.30320974,3091.1,3090.9,0.002]
[1768073755870,0.04043737,3091.2,3090.9,0.002]
[1768073756070,0.30320926,3091.1,3090.9,0.002]
[1768073756375,7.2416471,3091.3,3090.9,0.002]
[1768073756562,1.12458611,3091.2,3090.9,0.002]
[1768073756764,0.30318336,3091.1,3090.9,0.002]
[1768073757655,0.30318336,3091.0,3090.6,0.002]
[1768073757956,7.44259795,3091.1,3090.6,0.002]
[1768073758160,0.30314954,3091.0,3090.6,0.002]
[1768073758474,8.19090161,3091.1,3090.6,0.002]
[1768073758678,0.3030975,3091.0,3090.6,0.002]
[1768073758975,4.95579286,3091.1,3090.6,0.002]
[1768073759175,0.30309761,3091.0,3090.6,0.002]
[1768073759472,4.95579286,3091.1,3090.6,0.002]
[1768073759774,0.30306504,3091.0,3090.6,0.002]
[1768073760074,4.95579286,3091.1,3090.6,0.002]
[1768073760275,0.30307415,3091.0,3090.6,0.002]
[1768073760476,4.95579286,3091.1,3090.6,0.002]
[1768073760654,0.30307206,3091.0,3090.6,0.002]
[1768073760856,4.95579286,3091.1,3090.6,0.002]
[1768073761073,0.30307724,3091.0,3090.6,0.002]
[1768073761274,4.95579286,3091.1,3090.6,0.002]
[1768073761476,0.30304575,3091.0,3090.6,0.002]
[1768073761678,4.95579286,3091.1,3090.6,0.002]
[1768073761849,0.30304586,3091.0,3090.6,0.002]
[1768073762048,3.23490186,3091.3,3090.6,0.002]
[1768073762049,3.23503329,3091.2,3090.6,0.002]
[1768073762278,0.30302684,3091.1,3090.6,0.002]
[1768073762477,3.55852348,3091.2,3090.6,0.002]
[1768073762679,0.30302171,3091.1,3090.6,0.002]
[1768073762975,3.55852348,3091.2,3090.6,0.002]
[1768073763157,0.75611211,3091.1,3090.6,0.002]
[1768073763358,0.45309039,3091.1,3090.6,0.002]
[1768073768586,0.45309039,3091.1,3090.9,0.002]
[1768073778604,3.68818546,3091.1,3090.9,0.002]
[1768073782700,0.45309039,3091.1,3090.9,0.002]
[1768073783205,0.30318289,3091.0,3090.9,0.002]
[1768073790811,0.30331898,3091.0,3090.9,0.002]
[1768073834950,0.30344774,3091.0,3090.9,0.002]
[1768073842468,3.23499311,3091.2,3090.9,0.002]
[1768073842769,0.6523299,3091.1,3090.9,0.002]
[1768073842970,0.30343059,3091.0,3090.9,0.002]
[1768073853990,0.30343059,3091.2,3090.9,0.002]
[1768073854176,0.30343059,3091.1,3090.9,0.002]
[1768073854500,0.30343059,3091.0,3090.9,0.002]
[1768073854694,0.30343059,3091.2,3090.9,0.002]
[1768073854901,0.30343059,3091.1,3090.9,0.002]
[1768073855102,0.30343059,3091.0,3090.9,0.002]
[1768073855392,0.30343059,3091.1,3090.9,0.002]
[1768073855578,0.30343059,3091.0,3090.9,0.002]
[1768073855776,0.30343059,3091.2,3090.9,0.002]
[1768073855984,0.30343059,3091.1,3090.9,0.002]
[1768073856169,0.30343059,3091.0,3090.9,0.002]
[1768073856591,0.30343059,3091.2,3090.9,0.002]
[1768073856798,0.30343059,3091.1,3090.9,0.002]
[1768073856986,0.30343059,3091.0,3090.9,0.002]
[1768073857190,0.30343059,3091.2,3090.9,0.002]
[1768073857390,0.30343059,3091.1,3090.9,0.002]
[1768073857700,0.30343059,3091.0,3090.9,0.002]
[1768073857897,0.30343059,3091.1,3090.9,0.002]
[1768073858200,0.30343059,3091.0,3090.9,0.002]
[1768073858494,0.30343059,3091.2,3090.9,0.002]
[1768073858700,0.30343059,3091.1,3090.9,0.002]
[1768073858897,0.30343059,3091.0,3090.9,0.002]
[1768073859069,0.30343059,3091.1,3090.9,0.002]
[1768073859271,0.30343059,3091.0,3090.9,0.002]
[1768073859770,0.30343059,3091.1,3090.9,0.002]
[1768073859972,0.30343059,3091.0,3090.9,0.002]
[1768073860173,0.30343059,3091.1,3090.9,0.002]
[1768073860375,3.23499183,3091.2,3090.9,0.002]
[1768073860576,0.30346911,3091.1,3090.9,0.002]
[1768073860824,0.30346911,3091.0,3090.9,0.002]
[1768073871393,0.30346911,3091.0,3090.9,0.9355068]
[1768073871599,0.96222573,3091.7,3090.9,0.9355068]
[1768073871600,3.48882044,3091.4,3090.9,0.9355068]
[1768073871920,0.65235898,3091.3,3090.9,0.9355068]
[1768073872100,0.30347694,3091.2,3090.9,0.9355068]
[1768073872300,0.30347694,3091.1,3090.9,0.9355068]
[1768073872526,3.23482044,3091.4,3090.9,0.9355068]
[1768073872833,0.30343562,3091.3,3090.9,0.9355068]
[1768073873128,0.30343562,3091.2,3090.9,0.9355068]
[1768073873298,0.30343562,3091.1,3090.9,0.9355068]
[1768073873494,3.23482044,3091.4,3090.9,0.9355068]
[1768073873722,0.65231146,3091.3,3090.9,0.9355068]
[1768073873926,0.30342942,3091.2,3090.9,0.9355068]
[1768073874115,0.30342942,3091.1,3090.9,0.9355068]
[1768073874305,3.23482044,3091.4,3090.9,0.9355068]
[1768073874505,0.30341825,3091.3,3090.9,0.9355068]
[1768073874727,0.30341825,3091.2,3090.9,0.9355068]
[1768073874930,0.30341825,3091.1,3090.9,0.9355068]
[1768073875130,3.23482044,3091.4,3090.9,0.9355068]
[1768073875319,0.30341858,3091.3,3090.9,0.9355068]
[1768073875501,0.30341858,3091.2,3090.9,0.9355068]
[1768073875694,0.30341858,3091.1,3090.9,0.9355068]
[1768073875903,3.23482044,3091.4,3090.9,0.9355068]
[1768073876229,0.30340778,3091.3,3090.9,0.9355068]
[1768073876430,0.30340778,3091.2,3090.9,0.9355068]
[1768073876730,3.23482044,3091.4,3090.9,0.9355068]
[1768073876731,0.30340778,3091.1,3090.9,0.9355068]
[1768073877030,3.23482044,3091.4,3090.9,0.9355068]
[1768073877220,0.30339869,3091.3,3090.9,0.9355068]
[1768073877421,0.30339869,3091.2,3090.9,0.9355068]
[1768073877625,0.30339869,3091.1,3090.9,0.9355068]
[1768073877814,3.23482044,3091.4,3090.9,0.9355068]
[1768073878132,0.30339111,3091.3,3090.9,0.9355068]
[1768073878304,0.30339111,3091.2,3090.9,0.9355068]
[1768073878505,0.30339111,3091.1,3090.9,0.9355068]
[1768073878701,3.23482044,3091.4,3090.9,0.9355068]
[1768073878906,0.30338493,3091.3,3090.9,0.9355068]
[1768073879207,0.30338493,3091.2,3090.9,0.9355068]
[1768073879406,0.30338493,3091.1,3090.9,0.9355068]
[1768073879605,3.23482044,3091.4,3090.9,0.9355068]
[1768073879806,0.3033798,3091.3,3090.9,0.9355068]
[1768073880034,0.3033798,3091.2,3090.9,0.9355068]
[1768073880245,0.3033798,3091.1,3090.9,0.9355068]
[1768073880441,3.23482044,3091.4,3090.9,0.9355068]
[1768073880613,0.30337863,3091.3,3090.9,0.9355068]
[1768073880808,0.30337863,3091.2,3090.9,0.9355068]
[1768073881009,0.30337863,3091.1,3090.9,0.9355068]
[1768073881209,3.23482044,3091.4,3090.9,0.9355068]
[1768073881442,0.30337483,3091.3,3090.9,0.9355068]
[1768073881739,0.30337483,3091.2,3090.9,0.9355068]
[1768073881926,3.23428912,3091.9,3090.9,0.9355068]
[1768073882126,0.3034058,3091.8,3091.0,0.9780315]
[1768073882335,0.3034058,3091.7,3091.2,0.9780315]
[1768073882546,3.23518493,3092.0,3091.2,0.9780315]
[1768073882845,0.30331852,3091.9,3091.2,0.9780315]
[1768073883138,0.30331852,3091.8,3091.2,0.9780315]
[1768073883348,3.23518493,3092.0,3091.2,0.9780315]
[1768073883505,0.30315599,3091.9,3091.2,1.19225497]
[1768073883708,0.30315599,3091.8,3091.2,1.19225497]
[1768073883920,3.23518493,3092.0,3091.2,1.19225497]
[1768073884105,0.30315647,3091.9,3091.2,1.19225497]
[1768073884329,0.30315647,3091.8,3091.2,1.19225497]
[1768073884638,3.23518493,3092.0,3091.2,1.19225497]
[1768073884938,0.30305027,3091.9,3091.2,1.19225497]
[1768073885139,0.30305027,3091.8,3091.2,1.19225497]
[1768073885344,3.23518493,3092.0,3091.2,1.19225497]
[1768073885531,0.30297025,3091.9,3091.2,1.19225497]
[1768073885731,0.001,3092.0,3091.2,1.19225497]
[1768073885938,0.001,3092.0,3091.4,0.93258845]
[1768073885939,0.30297053,3091.9,3091.4,0.93258845]
[1768073886112,0.001,3092.0,3091.4,0.93258845]
[1768073886313,0.3029044,3091.9,3091.4,0.93258845]
[1768073886514,0.001,3092.0,3091.4,0.93258845]
[1768073886815,0.30289669,3091.9,3091.4,0.93258845]
[1768073887128,0.001,3092.0,3091.4,0.93258845]
[1768073887315,0.30284321,3091.9,3091.4,0.93258845]
[1768073887644,3.23518205,3092.0,3091.4,0.93258845]
[1768073887825,0.30283549,3091.9,3091.4,0.93258845]
[1768073888026,3.23518205,3092.0,3091.4,0.93258845]
[1768073888944,0.001,3092.0,3091.4,0.93258845]
[1768073892525,0.001,3092.0,3091.6,0.93258845]
[1768073894859,0.001,3091.7,3091.6,0.93258845]
[1768073916794,0.001,3092.0,3091.6,0.93258845]
[1768073918597,0.001,3091.7,3091.6,0.93258845]
[1768073925198,0.001,3092.0,3091.5,0.44244521]
[1768073930303,0.001,3091.7,3091.5,0.44244521]
[1768073931710,0.001,3091.7,3091.4,0.98908939]
[1768073935827,0.001,3091.7,3091.3,0.25699066]
[1768073942533,0.001,3091.7,3091.6,0.002]
[1768073944611,0.001,3091.7,3091.3,0.25899066]
[1768073944612,0.93373238,3091.6,3091.3,0.002]
[1768073954151,0.001,3091.7,3091.3,0.002]
[1768073955723,0.001,3091.7,3091.6,0.002]
[1768073974352,0.30449668,3091.7,3091.6,0.002]
[1768073979603,0.001,3091.7,3091.6,0.90439534]
[1768073982893,0.001,3092.0,3091.6,0.90439534]
[1768073991096,0.001,3091.7,3091.6,0.90439534]